[Event "Live Chess"]
[Site "Chess.com"]
[Date "2024.06.01"]
[Round "-"]
[White "KeithArkell"]
[Black "Bob2pen"]
[Result "1-0"]
[WhiteElo "2465"]
[BlackElo "1888"]
[TimeControl "300"]
[EndTime "12:44:29 PDT"]
[Termination "KeithArkell won by resignation"]

1. d4 {[%clk 0:04:52.7]} 1... Nf6 {[%clk 0:04:58]} 2. Nf3 {[%clk 0:04:49.8]}
2... c5 {[%clk 0:04:56.5]} 3. d5 {[%clk 0:04:48.1]} 3... e6 {[%clk 0:04:54.6]}
4. Nc3 {[%clk 0:04:47.2]} 4... exd5 {[%clk 0:04:53.2]} 5. Nxd5 {[%clk
0:04:46.5]} 5... Nxd5 {[%clk 0:04:51.9]} 6. Qxd5 {[%clk 0:04:45.6]} 6... d6
{[%clk 0:04:49.7]} 7. e4 {[%clk 0:04:44.8]} 7... Nc6 {[%clk 0:04:48]} 8. Bc4
{[%clk 0:04:43.1]} 8... Be6 {[%clk 0:04:41.4]} 9. Qd3 {[%clk 0:04:39.6]} 9...
Bxc4 {[%clk 0:04:15.1]} 10. Qxc4 {[%clk 0:04:38.3]} 10... Be7 {[%clk 0:04:14.2]}
11. O-O {[%clk 0:04:37.5]} 11... O-O {[%clk 0:04:13]} 12. Bf4 {[%clk 0:04:37]}
12... Bf6 {[%clk 0:04:03]} 13. c3 {[%clk 0:04:34.9]} 13... Qe7 {[%clk
0:03:59.6]} 14. Rad1 {[%clk 0:04:33.1]} 14... Ne5 {[%clk 0:03:50.3]} 15. Bxe5
{[%clk 0:04:31.7]} 15... Bxe5 {[%clk 0:03:49.1]} 16. Rd5 {[%clk 0:04:30.1]}
16... a6 {[%clk 0:03:42.7]} 17. a4 {[%clk 0:04:28.4]} 17... Rab8 {[%clk
0:03:38.5]} 18. Nxe5 {[%clk 0:04:26.1]} 18... dxe5 {[%clk 0:03:36.9]} 19. Qxc5
{[%clk 0:04:25.5]} 19... Qxc5 {[%clk 0:03:29.6]} 20. Rxc5 {[%clk 0:04:24.5]}
20... Rfe8 {[%clk 0:03:28.7]} 21. Rd1 {[%clk 0:04:22.8]} 21... b6 {[%clk
0:03:23.5]} 22. Rc7 {[%clk 0:04:20.8]} 22... b5 {[%clk 0:03:16.7]} 23. axb5
{[%clk 0:04:15.5]} 23... Rxb5 {[%clk 0:03:15.6]} 24. b4 {[%clk 0:04:13.9]} 24...
a5 {[%clk 0:03:14.1]} 25. bxa5 {[%clk 0:04:01.4]} 25... Rxa5 {[%clk 0:03:12.4]}
26. g3 {[%clk 0:04:00.2]} 26... Ra4 {[%clk 0:03:09]} 27. Rdd7 {[%clk 0:03:58.1]}
27... Rf8 {[%clk 0:03:07]} 28. f3 {[%clk 0:03:57.1]} 28... Ra2 {[%clk 0:03:02]}
29. Ra7 {[%clk 0:03:11.7]} 29... Rc2 {[%clk 0:02:58.7]} 30. Rd3 {[%clk
0:02:47.2]} 30... Rb8 {[%clk 0:02:56.5]} 31. Rad7 {[%clk 0:02:26.3]} 31... f6
{[%clk 0:02:32.4]} 32. Rd8+ {[%clk 0:02:22.9]} 32... Rxd8 {[%clk 0:02:31.5]} 33.
Rxd8+ {[%clk 0:02:22.4]} 33... Kf7 {[%clk 0:02:30.7]} 34. Rd7+ {[%clk
0:02:21.7]} 34... Ke6 {[%clk 0:02:26.7]} 35. Rxg7 {[%clk 0:02:20.1]} 35... Rxc3
{[%clk 0:02:25.5]} 36. Kg2 {[%clk 0:02:19.1]} 36... Rc2+ {[%clk 0:02:24.4]} 37.
Kh3 {[%clk 0:02:18.4]} 37... Rf2 {[%clk 0:02:19.3]} 38. Kg4 {[%clk 0:02:13.7]}
38... Rxh2 {[%clk 0:02:16]} 39. f4 {[%clk 0:02:12]} 39... h5+ {[%clk 0:02:11.6]}
40. Kf3 {[%clk 0:02:10.8]} 40... h4 {[%clk 0:02:06.4]} 41. f5+ {[%clk 0:02:09]}
41... Kd6 {[%clk 0:02:03.1]} 42. Rf7 {[%clk 0:02:03]} 42... hxg3 {[%clk
0:01:58.3]} 43. Rxf6+ {[%clk 0:02:00]} 43... Ke7 {[%clk 0:01:57.2]} 44. Re6+
{[%clk 0:01:58.9]} 44... Kf7 {[%clk 0:01:56.3]} 45. Kxg3 {[%clk 0:01:58.3]}
45... Re2 {[%clk 0:01:46.9]} 46. Rxe5 {[%clk 0:01:56.8]} 46... Re3+ {[%clk
0:01:42.8]} 47. Kf4 {[%clk 0:01:55.6]} 47... Re1 {[%clk 0:01:40.8]} 48. Ra5
{[%clk 0:01:54.2]} 48... Rh1 {[%clk 0:01:34.9]} 49. Ra7+ {[%clk 0:01:52.5]}
49... Kf8 {[%clk 0:01:31.9]} 50. Ke5 {[%clk 0:01:50.9]} 50... Rb1 {[%clk
0:01:28.7]} 51. f6 {[%clk 0:01:49]} 51... Rb6 {[%clk 0:01:24.9]} 52. Kf5 {[%clk
0:01:47.6]} 1-0

[Event "Live Chess"]
[Site "Chess.com"]
[Date "2024.06.01"]
[Round "-"]
[White "Tushinskiy"]
[Black "Zhevzh1k7"]
[Result "1-0"]
[WhiteElo "2241"]
[BlackElo "1108"]
[TimeControl "300"]
[EndTime "12:44:40 PDT"]
[Termination "Tushinskiy won by checkmate"]

1. d4 {[%clk 0:04:53.8]} 1... Nf6 {[%clk 0:04:57]} 2. c3 {[%clk 0:04:53.7]} 2...
e6 {[%clk 0:04:52.4]} 3. Nf3 {[%clk 0:04:42.4]} 3... d5 {[%clk 0:04:51.4]} 4.
Bf4 {[%clk 0:04:41.3]} 4... Nc6 {[%clk 0:04:45.6]} 5. Nbd2 {[%clk 0:04:39.1]}
5... Bd6 {[%clk 0:04:44.1]} 6. Bg3 {[%clk 0:04:37.2]} 6... Bxg3 {[%clk
0:04:42.4]} 7. hxg3 {[%clk 0:04:28.6]} 7... Bd7 {[%clk 0:04:40.1]} 8. Qc2 {[%clk
0:04:21.2]} 8... Qe7 {[%clk 0:04:34.4]} 9. e4 {[%clk 0:04:19.2]} 9... dxe4
{[%clk 0:04:32.8]} 10. Nxe4 {[%clk 0:04:19.1]} 10... Nxe4 {[%clk 0:04:31.5]} 11.
Qxe4 {[%clk 0:04:17]} 11... f5 {[%clk 0:04:16.9]} 12. Qe3 {[%clk 0:04:04.6]}
12... O-O-O {[%clk 0:04:14.1]} 13. Bc4 {[%clk 0:04:00.1]} 13... Na5 {[%clk
0:04:05.5]} 14. Bb3 {[%clk 0:03:37]} 14... Nxb3 {[%clk 0:03:47.4]} 15. axb3
{[%clk 0:03:36.9]} 15... Kb8 {[%clk 0:03:40.5]} 16. O-O {[%clk 0:03:28.3]} 16...
h5 {[%clk 0:03:26.2]} 17. d5 {[%clk 0:03:25.7]} 17... Rde8 {[%clk 0:03:11.1]}
18. Qxa7+ {[%clk 0:03:22.7]} 18... Kc8 {[%clk 0:03:02.3]} 19. Qa8# {[%clk
0:03:22.6]} 1-0

[Event "Live Chess"]
[Site "Chess.com"]
[Date "2024.06.01"]
[Round "-"]
[White "bobby_jamesFischer86"]
[Black "Cruiseylee78"]
[Result "0-1"]
[WhiteElo "1614"]
[BlackElo "1681"]
[TimeControl "300"]
[EndTime "12:44:45 PDT"]
[Termination "Cruiseylee78 won by checkmate"]

1. d4 {[%clk 0:04:57.1]} 1... d5 {[%clk 0:04:58.3]} 2. c4 {[%clk 0:04:55.9]}
2... Bf5 {[%clk 0:04:57.1]} 3. Nc3 {[%clk 0:04:47.7]} 3... e6 {[%clk 0:04:56.1]}
4. cxd5 {[%clk 0:04:46.5]} 4... exd5 {[%clk 0:04:54.7]} 5. e3 {[%clk 0:04:32.5]}
5... c6 {[%clk 0:04:46.8]} 6. Bd3 {[%clk 0:04:31]} 6... Bg6 {[%clk 0:04:42.6]}
7. Nf3 {[%clk 0:04:29.4]} 7... Nd7 {[%clk 0:04:40.9]} 8. Kf1 {[%clk 0:04:27.8]}
8... Ngf6 {[%clk 0:04:31.7]} 9. Ke2 {[%clk 0:04:24.2]} 9... Qc7 {[%clk 0:04:13]}
10. Re1 {[%clk 0:04:21.7]} 10... O-O-O {[%clk 0:04:11]} 11. Bd2 {[%clk
0:04:18.2]} 11... Kb8 {[%clk 0:04:10]} 12. Rc1 {[%clk 0:04:16.8]} 12... Bd6
{[%clk 0:04:08.6]} 13. Nb5 {[%clk 0:04:14.3]} 13... Qb6 {[%clk 0:03:55.6]} 14.
Nxd6 {[%clk 0:04:10.6]} 14... Nc5 {[%clk 0:03:01.9]} 15. Bxg6 {[%clk 0:04:04]}
15... Qa6+ {[%clk 0:02:37]} 16. Nc4 {[%clk 0:03:56.7]} 16... fxg6 {[%clk
0:02:33.2]} 17. dxc5 {[%clk 0:03:49.6]} 17... dxc4 {[%clk 0:02:28.9]} 18. Bc3
{[%clk 0:03:45.5]} 18... Rxd1 {[%clk 0:02:24.7]} 19. Rexd1 {[%clk 0:03:44.3]}
19... Ne4 {[%clk 0:02:21.2]} 20. Kf1 {[%clk 0:03:40.8]} 20... Re8 {[%clk
0:02:16.3]} 21. Ne5 {[%clk 0:03:37.9]} 21... Nxc3 {[%clk 0:02:12.9]} 22. Nd7+
{[%clk 0:03:36.6]} 22... Kc8 {[%clk 0:02:10.3]} 23. bxc3 {[%clk 0:03:33.8]}
23... Re7 {[%clk 0:02:06]} 24. Nf8 {[%clk 0:03:20.7]} 24... Qa3 {[%clk 0:02:01]}
25. Nxh7 {[%clk 0:02:56.6]} 25... Qxc5 {[%clk 0:01:55.4]} 26. Rd4 {[%clk
0:02:35.5]} 26... Qh5 {[%clk 0:01:51.5]} 27. Nf8 {[%clk 0:02:31.8]} 27... Re8
{[%clk 0:01:48.2]} 28. Nd7 {[%clk 0:02:24.7]} 28... Qxh2 {[%clk 0:01:41.7]} 29.
Rcd1 {[%clk 0:02:20.2]} 29... Qh1+ {[%clk 0:01:37.4]} 30. Ke2 {[%clk 0:02:18.6]}
30... Qxg2 {[%clk 0:01:35]} 31. Nc5 {[%clk 0:02:15.2]} 31... Rf8 {[%clk
0:01:25]} 32. Ne4 {[%clk 0:01:40.5]} 32... c5 {[%clk 0:01:20.7]} 33. Nd6+ {[%clk
0:01:20.4]} 33... Kb8 {[%clk 0:01:15.4]} 34. Rf4 {[%clk 0:01:06.6]} 34... Rxf4
{[%clk 0:01:11.8]} 35. exf4 {[%clk 0:01:05.1]} 35... Qg4+ {[%clk 0:01:08.3]} 36.
Ke1 {[%clk 0:00:49.8]} 36... Qxf4 {[%clk 0:01:04.1]} 37. Nb5 {[%clk 0:00:48.5]}
37... Qf6 {[%clk 0:00:59.5]} 38. Rd6 {[%clk 0:00:41.5]} 38... Qe7+ {[%clk
0:00:55.3]} 39. Kd1 {[%clk 0:00:35.4]} 39... a6 {[%clk 0:00:52.5]} 40. Rxg6
{[%clk 0:00:30.2]} 40... axb5 {[%clk 0:00:48.6]} 41. Rg3 {[%clk 0:00:28.9]}
41... Qf6 {[%clk 0:00:44.7]} 42. Re3 {[%clk 0:00:26.9]} 42... Qxf2 {[%clk
0:00:41.1]} 43. Re2 {[%clk 0:00:25.2]} 43... Qf3 {[%clk 0:00:38.2]} 44. Kd2
{[%clk 0:00:23.7]} 44... Qd3+ {[%clk 0:00:34.9]} 45. Ke1 {[%clk 0:00:22.6]}
45... Qxc3+ {[%clk 0:00:32.1]} 46. Kf2 {[%clk 0:00:21.8]} 46... Qd4+ {[%clk
0:00:29.3]} 47. Ke1 {[%clk 0:00:20.6]} 47... c3 {[%clk 0:00:26.9]} 48. Re8+
{[%clk 0:00:17.1]} 48... Ka7 {[%clk 0:00:22.9]} 49. Re2 {[%clk 0:00:15.8]} 49...
Qg1# {[%clk 0:00:19.7]} 0-1

[Event "Live Chess"]
[Site "Chess.com"]
[Date "2024.06.01"]
[Round "-"]
[White "OxonChess"]
[Black "stevochess11"]
[Result "0-1"]
[WhiteElo "1830"]
[BlackElo "1712"]
[TimeControl "300"]
[EndTime "12:44:47 PDT"]
[Termination "stevochess11 won by resignation"]

1. d4 {[%clk 0:04:56.7]} 1... Nf6 {[%clk 0:04:57.4]} 2. c4 {[%clk 0:04:55.4]}
2... c5 {[%clk 0:04:55.9]} 3. d5 {[%clk 0:04:54.1]} 3... b5 {[%clk 0:04:55]} 4.
cxb5 {[%clk 0:04:53]} 4... a6 {[%clk 0:04:50.1]} 5. Nc3 {[%clk 0:04:51.8]} 5...
g6 {[%clk 0:04:43]} 6. e4 {[%clk 0:04:50]} 6... d6 {[%clk 0:04:40.8]} 7. Nf3
{[%clk 0:04:44]} 7... Nbd7 {[%clk 0:04:38.5]} 8. bxa6 {[%clk 0:04:37.9]} 8...
Bxa6 {[%clk 0:04:36.8]} 9. Bxa6 {[%clk 0:04:34.7]} 9... Rxa6 {[%clk 0:04:36.7]}
10. O-O {[%clk 0:04:33.4]} 10... Bg7 {[%clk 0:04:35.1]} 11. Re1 {[%clk
0:04:29.3]} 11... O-O {[%clk 0:04:33.9]} 12. a4 {[%clk 0:04:23.6]} 12... Qc7
{[%clk 0:04:28.2]} 13. Nb5 {[%clk 0:04:20.8]} 13... Qb6 {[%clk 0:04:24.4]} 14.
Ra3 {[%clk 0:04:15.4]} 14... Rb8 {[%clk 0:04:22.6]} 15. Nd2 {[%clk 0:04:11.1]}
15... Ne5 {[%clk 0:04:10.5]} 16. Qc2 {[%clk 0:04:00.7]} 16... Qa5 {[%clk
0:03:52.5]} 17. Re2 {[%clk 0:03:37.7]} 17... Nfd7 {[%clk 0:03:36.4]} 18. Nc4
{[%clk 0:03:22.2]} 18... Nxc4 {[%clk 0:03:34.2]} 19. Qxc4 {[%clk 0:03:20]} 19...
Nb6 {[%clk 0:03:31.3]} 20. Qc2 {[%clk 0:03:11]} 20... Nxa4 {[%clk 0:03:29.1]}
21. Bd2 {[%clk 0:03:05.6]} 21... Qxb5 {[%clk 0:03:24.7]} 22. Bc1 {[%clk
0:02:49.4]} 22... Nxb2 {[%clk 0:03:16.2]} 23. Rxa6 {[%clk 0:02:29.6]} 23... Qxa6
{[%clk 0:03:09.3]} 24. e5 {[%clk 0:02:01.2]} 24... Bxe5 {[%clk 0:03:04.7]} 25.
Rxe5 {[%clk 0:01:55.3]} 25... dxe5 {[%clk 0:03:00]} 26. Bxb2 {[%clk 0:01:54.1]}
26... Qa2 {[%clk 0:02:46]} 27. g3 {[%clk 0:01:49.2]} 27... Rxb2 {[%clk
0:02:44.2]} 28. Qxc5 {[%clk 0:01:47.8]} 28... Rd2 {[%clk 0:02:12]} 29. h4 {[%clk
0:01:17.9]} 29... Qb1+ {[%clk 0:02:02.6]} 30. Kg2 {[%clk 0:01:13.7]} 30... Qe4+
{[%clk 0:02:01.5]} 31. Kh3 {[%clk 0:01:08.8]} 31... Qh1+ {[%clk 0:01:57]} 32.
Kg4 {[%clk 0:01:04.2]} 32... h5+ {[%clk 0:01:53.4]} 33. Kg5 {[%clk 0:01:01.8]}
33... Qxd5 {[%clk 0:01:49.5]} 34. Qxe7 {[%clk 0:00:52.3]} 34... Qd8 {[%clk
0:01:41]} 0-1

[Event "Live Chess"]
[Site "Chess.com"]
[Date "2024.06.01"]
[Round "-"]
[White "Kyrylo7770"]
[Black "Hacker_2009"]
[Result "0-1"]
[WhiteElo "1683"]
[BlackElo "2226"]
[TimeControl "300"]
[EndTime "12:44:55 PDT"]
[Termination "Hacker_2009 won by checkmate"]

1. d4 {[%clk 0:04:58.5]} 1... Nf6 {[%clk 0:04:57.8]} 2. Nf3 {[%clk 0:04:57.9]}
2... d5 {[%clk 0:04:57]} 3. Bg5 {[%clk 0:04:57.3]} 3... e6 {[%clk 0:04:55.9]} 4.
e3 {[%clk 0:04:56.9]} 4... Be7 {[%clk 0:04:55.4]} 5. c4 {[%clk 0:04:56.4]} 5...
O-O {[%clk 0:04:54.6]} 6. Nc3 {[%clk 0:04:55.2]} 6... c5 {[%clk 0:04:52.5]} 7.
cxd5 {[%clk 0:04:54.3]} 7... Nxd5 {[%clk 0:04:50.7]} 8. Bxe7 {[%clk 0:04:53.3]}
8... Qxe7 {[%clk 0:04:48.9]} 9. Nxd5 {[%clk 0:04:50.5]} 9... exd5 {[%clk
0:04:48.8]} 10. Ne5 {[%clk 0:04:49.9]} 10... Nc6 {[%clk 0:04:46.1]} 11. Nxc6
{[%clk 0:04:48.7]} 11... bxc6 {[%clk 0:04:46]} 12. Be2 {[%clk 0:04:46.7]} 12...
cxd4 {[%clk 0:04:44.7]} 13. Qxd4 {[%clk 0:04:45.9]} 13... Be6 {[%clk 0:04:28.8]}
14. a3 {[%clk 0:04:44.7]} 14... c5 {[%clk 0:04:25.5]} 15. Qa4 {[%clk 0:04:41.4]}
15... Qf6 {[%clk 0:04:20.1]} 16. h4 {[%clk 0:04:39.2]} 16... Qxb2 {[%clk
0:04:18.9]} 17. Rd1 {[%clk 0:04:31.3]} 17... d4 {[%clk 0:04:06.9]} 18. exd4
{[%clk 0:04:26.3]} 18... Bb3 {[%clk 0:04:06.4]} 19. Qb5 {[%clk 0:04:14.6]} 19...
Qc3+ {[%clk 0:04:04.2]} 20. Kf1 {[%clk 0:04:13.2]} 20... Bxd1 {[%clk 0:04:02.2]}
21. Bxd1 {[%clk 0:04:12.4]} 21... cxd4 {[%clk 0:03:58.4]} 22. h5 {[%clk
0:04:11.7]} 22... h6 {[%clk 0:03:56.2]} 23. Qf5 {[%clk 0:04:07.8]} 23... d3
{[%clk 0:03:53.4]} 24. g3 {[%clk 0:03:57.9]} 24... d2 {[%clk 0:03:44.9]} 25. Kg2
{[%clk 0:03:56]} 25... Rfe8 {[%clk 0:03:40]} 26. Bc2 {[%clk 0:03:55]} 26... Qc6+
{[%clk 0:03:33.7]} 27. Kh3 {[%clk 0:03:52.5]} 27... Qxh1+ {[%clk 0:03:32.5]} 28.
Kg4 {[%clk 0:03:51]} 28... d1=Q+ {[%clk 0:03:26.9]} 29. Bxd1 {[%clk 0:03:48.3]}
29... Qxd1+ {[%clk 0:03:26.5]} 30. Kh3 {[%clk 0:03:47.6]} 30... Rad8 {[%clk
0:03:23]} 31. f3 {[%clk 0:03:42.4]} 31... Qh1+ {[%clk 0:03:18.7]} 32. Kg4 {[%clk
0:03:41.9]} 32... Rd4+ {[%clk 0:03:18]} 33. f4 {[%clk 0:03:38.6]} 33... Qd1+
{[%clk 0:03:17.1]} 34. Kh4 {[%clk 0:03:38.3]} 34... Rd2 {[%clk 0:03:10.3]} 35.
Qb5 {[%clk 0:03:30.7]} 35... Rh2# {[%clk 0:03:08.1]} 0-1

[Event "Live Chess"]
[Site "Chess.com"]
[Date "2024.06.01"]
[Round "-"]
[White "ACM42"]
[Black "dl_chess"]
[Result "1-0"]
[WhiteElo "2205"]
[BlackElo "1183"]
[TimeControl "300"]
[EndTime "12:45:24 PDT"]
[Termination "ACM42 won on time"]

1. e4 {[%clk 0:04:58.5]} 1... e6 {[%clk 0:04:58.3]} 2. d4 {[%clk 0:04:56.6]}
2... d5 {[%clk 0:04:57.4]} 3. Nc3 {[%clk 0:04:55.3]} 3... Nf6 {[%clk 0:04:55.3]}
4. e5 {[%clk 0:04:53.9]} 4... Nfd7 {[%clk 0:04:54.3]} 5. f4 {[%clk 0:04:53.2]}
5... c5 {[%clk 0:04:52.1]} 6. Nf3 {[%clk 0:04:52.5]} 6... Nc6 {[%clk 0:04:47.7]}
7. Be3 {[%clk 0:04:51.8]} 7... cxd4 {[%clk 0:04:39.2]} 8. Nxd4 {[%clk
0:04:50.2]} 8... a6 {[%clk 0:04:17.9]} 9. g3 {[%clk 0:04:37]} 9... Qc7 {[%clk
0:04:03.4]} 10. Bh3 {[%clk 0:04:34]} 10... Nxd4 {[%clk 0:03:53.1]} 11. Bxd4
{[%clk 0:04:31.4]} 11... Bc5 {[%clk 0:03:46.3]} 12. O-O {[%clk 0:04:29.7]} 12...
Bxd4+ {[%clk 0:03:20.2]} 13. Qxd4 {[%clk 0:04:27.5]} 13... Nc5 {[%clk
0:03:16.3]} 14. f5 {[%clk 0:04:18.5]} 14... Bd7 {[%clk 0:02:55.8]} 15. fxe6
{[%clk 0:03:58.6]} 15... Bxe6 {[%clk 0:02:45.6]} 16. Nxd5 {[%clk 0:03:41.3]}
16... Bxd5 {[%clk 0:02:27.2]} 17. Qxd5 {[%clk 0:03:38.6]} 17... O-O {[%clk
0:02:11.5]} 18. c3 {[%clk 0:03:07.9]} 18... Rad8 {[%clk 0:02:09.4]} 19. Qc4
{[%clk 0:03:03]} 19... Qb6 {[%clk 0:01:52.4]} 20. Kh1 {[%clk 0:02:50.2]} 20...
Nd3 {[%clk 0:01:12.1]} 21. Qb3 {[%clk 0:01:43.2]} 21... Nf2+ {[%clk 0:01:04.4]}
22. Kg2 {[%clk 0:01:39.5]} 22... Qe3 {[%clk 0:00:49.1]} 23. Rxf2 {[%clk
0:01:36.6]} 23... Qe4+ {[%clk 0:00:42.4]} 24. Kg1 {[%clk 0:01:34.2]} 24... Qe3
{[%clk 0:00:20]} 25. Qc2 {[%clk 0:01:29.1]} 25... Qxe5 {[%clk 0:00:13]} 26. Raf1
{[%clk 0:01:27.6]} 26... Qc5 {[%clk 0:00:11.4]} 27. Kh1 {[%clk 0:01:23.2]} 27...
Rd6 {[%clk 0:00:06.5]} 28. Bg2 {[%clk 0:01:18.2]} 28... Rh6 {[%clk 0:00:01.7]}
29. Qb3 {[%clk 0:01:14]} 1-0

[Event "Live Chess"]
[Site "Chess.com"]
[Date "2024.06.01"]
[Round "-"]
[White "bonantagulo"]
[Black "Silverback7829"]
[Result "1-0"]
[WhiteElo "2106"]
[BlackElo "1113"]
[TimeControl "300"]
[EndTime "12:45:25 PDT"]
[Termination "bonantagulo won by checkmate"]

1. d4 {[%clk 0:04:58.5]} 1... d5 {[%clk 0:04:57.4]} 2. e4 {[%clk 0:04:56.9]}
2... dxe4 {[%clk 0:04:54.6]} 3. Nc3 {[%clk 0:04:56.3]} 3... Nf6 {[%clk
0:04:48.5]} 4. Bg5 {[%clk 0:04:45.2]} 4... h6 {[%clk 0:04:45.2]} 5. Bxf6 {[%clk
0:04:44]} 5... gxf6 {[%clk 0:04:41.5]} 6. Nxe4 {[%clk 0:04:43.9]} 6... f5 {[%clk
0:04:35.5]} 7. Nc3 {[%clk 0:04:38.7]} 7... Bg7 {[%clk 0:04:30.5]} 8. Nf3 {[%clk
0:04:37.1]} 8... Be6 {[%clk 0:04:25.9]} 9. g3 {[%clk 0:04:26.8]} 9... Nc6 {[%clk
0:04:23.7]} 10. Bg2 {[%clk 0:04:20.3]} 10... Qd7 {[%clk 0:04:20.8]} 11. O-O
{[%clk 0:03:47.2]} 11... O-O-O {[%clk 0:04:18.6]} 12. Ne2 {[%clk 0:03:23]} 12...
Nb4 {[%clk 0:04:15.2]} 13. Nf4 {[%clk 0:03:07.8]} 13... Bxa2 {[%clk 0:04:11.2]}
14. c3 {[%clk 0:03:03.7]} 14... Bc4 {[%clk 0:04:05.7]} 15. cxb4 {[%clk
0:02:51.7]} 15... Bxf1 {[%clk 0:04:02.9]} 16. Qxf1 {[%clk 0:02:46.4]} 16... f6
{[%clk 0:03:50.7]} 17. Rxa7 {[%clk 0:02:41]} 17... c6 {[%clk 0:03:40.7]} 18. b5
{[%clk 0:02:25.1]} 18... Kc7 {[%clk 0:03:30.3]} 19. bxc6 {[%clk 0:02:18.3]}
19... Qxc6 {[%clk 0:03:24.5]} 20. Ne5 {[%clk 0:02:14.2]} 20... fxe5 {[%clk
0:03:11.4]} 21. Bxc6 {[%clk 0:02:12.6]} 21... Kxc6 {[%clk 0:03:07.1]} 22. Qc4+
{[%clk 0:02:08.1]} 22... Kd6 {[%clk 0:02:58.5]} 23. Qc5+ {[%clk 0:01:59.8]}
23... Kd7 {[%clk 0:02:52.2]} 24. Rxb7+ {[%clk 0:01:59.7]} 24... Ke8 {[%clk
0:02:49.2]} 25. Qxe7# {[%clk 0:01:59.6]} 1-0

[Event "Live Chess"]
[Site "Chess.com"]
[Date "2024.06.01"]
[Round "-"]
[White "gmnorfolk"]
[Black "Ksenia_2013"]
[Result "1-0"]
[WhiteElo "2072"]
[BlackElo "764"]
[TimeControl "300"]
[EndTime "12:45:41 PDT"]
[Termination "gmnorfolk won by checkmate"]

1. Nf3 {[%clk 0:04:58.2]} 1... d5 {[%clk 0:04:57.1]} 2. d4 {[%clk 0:04:57]} 2...
Nc6 {[%clk 0:04:55.6]} 3. Bf4 {[%clk 0:04:53.8]} 3... Bf5 {[%clk 0:04:54.4]} 4.
c4 {[%clk 0:04:51.6]} 4... dxc4 {[%clk 0:04:51.7]} 5. Nc3 {[%clk 0:04:50.2]}
5... Nf6 {[%clk 0:04:49.6]} 6. Ne5 {[%clk 0:04:47]} 6... Nxd4 {[%clk 0:04:44.4]}
7. e3 {[%clk 0:04:40.9]} 7... Nc2+ {[%clk 0:04:42.5]} 8. Ke2 {[%clk 0:04:37.5]}
8... Nxa1 {[%clk 0:04:39]} 9. Qxa1 {[%clk 0:04:20.3]} 9... e6 {[%clk 0:04:34.5]}
10. f3 {[%clk 0:04:06.1]} 10... Bd6 {[%clk 0:04:21.5]} 11. Kf2 {[%clk
0:04:02.6]} 11... O-O {[%clk 0:04:09.5]} 12. h4 {[%clk 0:03:58.9]} 12... Bxe5
{[%clk 0:04:08.1]} 13. Bxe5 {[%clk 0:03:56.7]} 13... Qd2+ {[%clk 0:04:04.3]} 14.
Kg3 {[%clk 0:03:54]} 14... Nh5+ {[%clk 0:04:02.8]} 15. Kh2 {[%clk 0:03:51.3]}
15... Qxe3 {[%clk 0:03:40.9]} 16. f4 {[%clk 0:03:46.6]} 16... f6 {[%clk
0:03:34.6]} 17. Bxc7 {[%clk 0:03:44.9]} 17... e5 {[%clk 0:03:30.9]} 18. Bxc4+
{[%clk 0:03:41.3]} 18... Kh8 {[%clk 0:03:28.6]} 19. Nd5 {[%clk 0:03:40.3]} 19...
Qc5 {[%clk 0:03:18.9]} 20. Rc1 {[%clk 0:03:27.5]} 20... exf4 {[%clk 0:03:15.8]}
21. b4 {[%clk 0:03:24]} 21... Qf2 {[%clk 0:03:07.1]} 22. Rc3 {[%clk 0:03:15.4]}
22... Be4 {[%clk 0:03:05.1]} 23. Nxf4 {[%clk 0:02:04.4]} 23... Qxh4+ {[%clk
0:03:00.7]} 24. Rh3 {[%clk 0:02:00.2]} 24... Ng3 {[%clk 0:02:53.7]} 25. Rxh4
{[%clk 0:01:55.6]} 25... Rac8 {[%clk 0:02:41.5]} 26. Ne6 {[%clk 0:01:47.1]}
26... Rfe8 {[%clk 0:02:37.4]} 27. Kxg3 {[%clk 0:01:42.4]} 27... g5 {[%clk
0:02:28.5]} 28. Rxe4 {[%clk 0:01:36]} 28... Kg8 {[%clk 0:02:14.9]} 29. Qxf6
{[%clk 0:01:33.1]} 29... Rf8 {[%clk 0:02:11.3]} 30. Nxf8# {[%clk 0:01:31]} 1-0

[Event "Live Chess"]
[Site "Chess.com"]
[Date "2024.06.01"]
[Round "-"]
[White "Nazar-Makarchuk"]
[Black "TigerTank70"]
[Result "0-1"]
[WhiteElo "1510"]
[BlackElo "2193"]
[TimeControl "300"]
[EndTime "12:45:46 PDT"]
[Termination "TigerTank70 won by resignation"]

1. e4 {[%clk 0:04:52]} 1... e5 {[%clk 0:04:58.5]} 2. Nf3 {[%clk 0:04:13.7]} 2...
Nc6 {[%clk 0:04:57]} 3. Bb5 {[%clk 0:04:04]} 3... a6 {[%clk 0:04:54.3]} 4. Bxc6
{[%clk 0:03:58]} 4... dxc6 {[%clk 0:04:54.2]} 5. O-O {[%clk 0:03:56.8]} 5... Bg4
{[%clk 0:04:51.5]} 6. d4 {[%clk 0:03:55.2]} 6... Bxf3 {[%clk 0:04:44.9]} 7. Qxf3
{[%clk 0:03:53.8]} 7... Qxd4 {[%clk 0:04:43.6]} 8. Nc3 {[%clk 0:03:51.5]} 8...
Nf6 {[%clk 0:04:39.7]} 9. Be3 {[%clk 0:03:50.3]} 9... Qb4 {[%clk 0:04:33.8]} 10.
Rab1 {[%clk 0:03:47.6]} 10... Be7 {[%clk 0:04:29.9]} 11. Bd2 {[%clk 0:03:45.4]}
11... Qd6 {[%clk 0:04:25.9]} 12. Qd1 {[%clk 0:03:43.7]} 12... Rd8 {[%clk
0:04:23.2]} 13. Be3 {[%clk 0:03:40.5]} 13... Qe6 {[%clk 0:04:22.3]} 14. Qe2
{[%clk 0:03:38.3]} 14... O-O {[%clk 0:04:19.8]} 15. Rfd1 {[%clk 0:03:37.5]}
15... b6 {[%clk 0:04:15.5]} 16. Rxd8 {[%clk 0:03:35.7]} 16... Rxd8 {[%clk
0:04:15.3]} 17. Rd1 {[%clk 0:03:34.7]} 17... Rxd1+ {[%clk 0:04:11.6]} 18. Qxd1
{[%clk 0:03:34.3]} 18... h6 {[%clk 0:04:10.2]} 19. f3 {[%clk 0:03:33.8]} 19...
Kh7 {[%clk 0:04:07.1]} 20. Qd2 {[%clk 0:03:26.8]} 20... Bb4 {[%clk 0:04:01.3]}
21. Kf2 {[%clk 0:03:25.4]} 21... Ne8 {[%clk 0:03:48.6]} 22. a3 {[%clk
0:03:23.7]} 22... Bxc3 {[%clk 0:03:45.5]} 23. Qxc3 {[%clk 0:03:21.7]} 23... c5
{[%clk 0:03:42.6]} 24. b4 {[%clk 0:03:18.9]} 24... cxb4 {[%clk 0:03:40.2]} 25.
Qxb4 {[%clk 0:03:18.2]} 25... Qd6 {[%clk 0:03:36.3]} 26. Qxd6 {[%clk 0:03:16.6]}
26... Nxd6 {[%clk 0:03:35.5]} 27. f4 {[%clk 0:03:11.6]} 27... exf4 {[%clk
0:03:31.5]} 28. Bxf4 {[%clk 0:03:10.3]} 28... Nxe4+ {[%clk 0:03:30.7]} 29. Kf3
{[%clk 0:03:09.7]} 29... f5 {[%clk 0:03:27]} 30. Bxc7 {[%clk 0:03:08]} 30... b5
{[%clk 0:03:26.4]} 31. Ba5 {[%clk 0:03:04.8]} 31... g5 {[%clk 0:03:25.2]} 32. g4
{[%clk 0:03:02.1]} 32... Kg6 {[%clk 0:03:23.4]} 33. gxf5+ {[%clk 0:03:00.8]}
33... Kxf5 {[%clk 0:03:22.2]} 34. Bb4 {[%clk 0:02:59.7]} 34... h5 {[%clk
0:03:16.5]} 35. c3 {[%clk 0:02:58.9]} 35... g4+ {[%clk 0:03:14.9]} 36. Kg2
{[%clk 0:02:56.9]} 36... Kf4 {[%clk 0:03:12.1]} 37. Kg1 {[%clk 0:02:52.7]} 37...
Kf3 {[%clk 0:03:09.9]} 38. Ba5 {[%clk 0:02:41.4]} 38... h4 {[%clk 0:03:08.2]}
39. Kf1 {[%clk 0:02:33.4]} 39... h3 {[%clk 0:03:06.9]} 40. Ke1 {[%clk
0:02:31.8]} 40... Kg2 {[%clk 0:03:04]} 41. Bc7 {[%clk 0:02:28.8]} 41... g3
{[%clk 0:03:03.3]} 42. hxg3 {[%clk 0:02:27]} 42... h2 {[%clk 0:03:02.2]} 43. Bf4
{[%clk 0:02:23]} 43... h1=Q+ {[%clk 0:03:00.5]} 44. Ke2 {[%clk 0:02:22.4]} 44...
Nxc3+ {[%clk 0:02:58.4]} 45. Kd3 {[%clk 0:02:21.3]} 45... Nd5 {[%clk 0:02:57]}
46. Ke4 {[%clk 0:02:19.1]} 46... Nxf4 {[%clk 0:02:55.1]} 47. gxf4 {[%clk
0:02:18.2]} 47... Qe1+ {[%clk 0:02:53.1]} 0-1